bitfinex/quotes_SOLUSD_20250520
["timestamp","ask_amount","ask_price","bid_price","bid_amount"]
[1747732110059,20.84325868,167.92,167.88,26.0]
[1747732111180,14.88804192,167.92,167.88,26.0]
[1747732113592,5.95486214,167.93,167.88,26.0]
[1747732114395,20.84002746,167.95,167.89,18.64964886]
[1747732114777,33.29765786,167.95,167.89,18.64964886]
[1747732114968,0.28432314,167.94,167.88,26.0]
[1747732115172,12.4576304,167.93,167.88,26.0]
[1747732116500,20.84325868,167.92,167.88,26.0]
[1747732118203,14.88804192,167.92,167.88,26.0]
[1747732126115,5.95486214,167.93,167.88,26.0]
[1747732126415,5.95486214,167.93,167.89,18.64964886]
[1747732127823,20.84035438,167.95,167.89,18.64964886]
[1747732129011,20.84035438,167.95,167.9,3.36359458]
[1747732129508,14.88620136,167.95,167.9,3.36359458]
[1747732130101,14.88620136,167.95,167.89,18.64964886]
[1747732131227,20.84035438,167.95,167.89,18.64964886]
[1747732131901,5.95415302,167.95,167.92,26.0]
[1747732132106,5.95415302,167.95,167.93,17.86]
[1747732132918,20.83705422,167.97,167.93,17.86]
[1747732137332,12.74195354,167.96,167.92,26.0]
[1747732137492,12.74195354,167.96,167.92,17.86]
[1747732138019,12.4576304,167.95,167.88,18.64964886]
[1747732138219,12.4576304,167.95,167.91,17.86]
[1747732138902,12.74195354,167.96,167.91,17.86]
[1747732139826,20.83953557,167.95,167.91,17.86]
[1747732140323,5.95415302,167.95,167.91,43.86]
[1747732141191,27.48334267,167.98,167.91,43.86]
[1747732141192,14.8835507,167.98,167.91,43.86]
[1747732141423,27.3411811,167.98,167.91,43.86]
[1747732141614,12.4576304,167.97,167.91,43.86]
[1747732142022,12.4576304,167.98,167.91,43.86]
[1747732142821,14.88361016,167.97,167.91,43.86]
[1747732144122,20.83705422,167.97,167.91,43.86]
[1747732149023,5.95344406,167.97,167.91,49.81545046]
[1747732149204,5.95344406,167.97,167.92,18.64964886]
[1747732149407,5.95273528,167.99,167.92,18.64964886]
[1747732150114,12.4576304,167.98,167.91,45.4564]
[1747732150314,12.4576304,167.97,167.91,19.4564]
[1747732150624,20.83457348,167.99,167.92,3.36462892]
[1747732150915,12.4576304,167.98,167.92,3.36462892]
[1747732151123,5.95379852,167.96,167.92,21.22462892]
[1747732151719,5.95379852,167.96,167.92,17.86]
[1747732152026,20.83829482,167.96,167.92,17.86]
[1747732153015,20.83829482,167.96,167.93,3.36710365]
[1747732153912,33.29592522,167.96,167.93,3.36710365]
[1747732154121,12.74195354,167.95,167.93,3.36710365]
[1747732154428,12.4576304,167.94,167.93,3.36710365]
[1747732154609,0.28432314,167.93,167.88,17.86]
[1747732154809,12.74195354,167.93,167.88,17.86]
[1747732155117,0.28432314,167.88,167.84,8.55472291]
[1747732155313,12.74195354,167.88,167.84,8.55472291]
[1747732155512,20.84946684,167.87,167.84,8.55472291]
[1747732155726,5.95699052,167.87,167.84,8.55472291]
[1747732155925,5.95628089,167.89,167.84,8.55472291]
[1747732156227,5.95628089,167.89,167.85,48.01938185]
[1747732156929,20.84698313,167.89,167.85,29.36973299]
[1747732157610,14.89070224,167.89,167.86,3.36973299]
[1747732159238,14.89070224,167.89,167.85,26.0]
[1747732161548,14.89070224,167.89,167.86,3.36682977]
[1747732162643,14.89070224,167.89,167.86,21.22682977]
[1747732163118,14.89070224,167.89,167.86,17.86]
[1747732166838,20.84698313,167.89,167.86,17.86]
[1747732167138,20.84698313,167.89,167.84,19.04]
[1747732167347,12.4576304,167.87,167.8,18.64964886]
[1747732167513,12.4576304,167.87,167.81,17.86]
[1747732167718,12.4576304,167.87,167.81,43.86]
[1747732168243,12.4576304,167.87,167.82,3.36559475]
[1747732168941,5.9573454,167.86,167.82,3.36559475]
[1747732169247,12.4576304,167.85,167.83,17.86]
[1747732169549,18.4149758,167.86,167.83,17.86]
[1747732170430,27.35099391,167.86,167.83,17.86]
[1747732171017,27.35099391,167.86,167.81,26.0]
[1747732171234,27.35099391,167.86,167.82,17.86]
[1747732171632,33.30833931,167.86,167.82,17.86]
[1747732172823,20.85070891,167.86,167.82,17.86]
[1747732174020,5.9573454,167.86,167.82,17.86]
[1747732175831,20.84822492,167.88,167.82,17.86]
[1747732176642,33.30585532,167.88,167.82,17.86]
[1747732176847,12.4576304,167.87,167.82,17.86]
[1747732177527,33.30585532,167.88,167.82,17.86]
[1747732178045,20.84822492,167.88,167.82,17.86]
[1747732180866,5.95663569,167.88,167.82,17.86]
[1747732181860,5.95628089,167.89,167.82,17.86]
[1747732182563,33.30461353,167.89,167.82,17.86]
[1747732185562,20.84698313,167.89,167.82,17.86]
[1747732189161,12.4576304,167.88,167.82,17.86]
[1747732190143,20.84698313,167.89,167.82,17.86]
[1747732190346,33.30461353,167.89,167.82,17.86]
[1747732194867,33.30461353,167.89,167.83,3.36559871]
[1747732195065,0.28432314,167.87,167.83,3.36559871]
[1747732195258,12.4576304,167.86,167.83,3.36559871]
[1747732195770,5.95770032,167.85,167.83,3.36559871]
[1747732195985,20.85195113,167.85,167.82,17.86]
[1747732196568,20.85195113,167.85,167.82,26.0]
[1747732196869,20.85195113,167.85,167.82,43.86]
[1747732197243,20.85195113,167.85,167.82,26.0]
[1747732197445,20.85195113,167.85,167.82,43.86]
[1747732199670,20.85195113,167.85,167.83,3.37936331]
[1747732200576,20.85195113,167.85,167.82,43.86]
[1747732201071,12.74195354,167.84,167.79,19.04]
[1747732201260,12.4576304,167.82,167.79,17.86]
[1747732202655,20.85443603,167.83,167.79,17.86]
[1747732202861,33.31206643,167.83,167.79,17.86]
[1747732205553,12.74195354,167.82,167.78,17.86]
[1747732206681,20.85692151,167.81,167.76,26.0]
[1747732206981,20.85692151,167.81,167.77,43.86]
[1747732210473,33.31455191,167.81,167.77,43.86]
[1747732210670,12.4576304,167.8,167.75,26.0]
[1747732210878,20.85940759,167.79,167.77,17.86]
[1747732211370,20.85940759,167.79,167.75,26.0]
[1747732211576,33.31703799,167.79,167.75,17.86]
[1747732212158,12.4576304,167.78,167.75,17.86]
[1747732212382,12.4576304,167.77,167.74,36.9]
[1747732212586,12.4576304,167.77,167.74,17.86]
[1747732212787,5.96089651,167.76,167.74,17.86]
[1747732212974,5.96089651,167.76,167.71,26.0]
[1747732213177,5.96089651,167.76,167.72,17.86]
[1747732214503,20.8631378,167.76,167.72,17.86]
[1747732214888,33.3207682,167.76,167.73,17.86]
[1747732219184,20.8631378,167.76,167.73,17.86]
[1747732219489,20.8631378,167.76,167.72,17.86]
[1747732219490,12.4576304,167.75,167.72,17.86]
[1747732219691,0.28432314,167.74,167.71,17.86]
[1747732220588,5.96196267,167.73,167.71,17.86]
[1747732221503,5.96196267,167.73,167.72,17.86]
[1747732222899,20.86569386,167.74,167.72,17.86]
[1747732224193,5.96089651,167.76,167.72,17.86]
[1747732225893,21.14373073,167.79,167.72,17.86]
[1747732226577,12.4576304,167.78,167.72,17.86]
[1747732228076,5.96054121,167.77,167.72,17.86]
[1747732230302,20.86065084,167.78,167.72,17.86]
[1747732230477,33.31828124,167.78,167.72,17.86]
[1747732231799,14.90046489,167.78,167.72,17.86]
[1747732232008,18.7014291,167.8,167.72,17.86]
[1747732232683,6.2437987,167.8,167.72,17.86]
[1747732232984,20.85816447,167.8,167.73,18.64964886]
[1747732233305,5.95947556,167.8,167.75,18.64964886]
[1747732233983,33.31460181,167.81,167.75,26.0]
[1747732234383,12.4576304,167.8,167.73,44.64964886]
[1747732234902,20.85697141,167.81,167.73,26.0]
[1747732235091,12.74195354,167.79,167.73,26.0]
[1747732235292,0.28432314,167.79,167.73,26.0]
[1747732236018,20.86065084,167.78,167.73,26.0]
[1747732242408,12.74195354,167.77,167.73,17.86]
[1747732244208,5.96089651,167.76,167.73,17.86]
[1747732244585,33.3207682,167.76,167.72,17.86]
[1747732245696,33.3207682,167.76,167.69,19.04]
[1747732245895,33.3207682,167.76,167.7,17.86]
[1747732246511,33.3207682,167.76,167.71,3.37575409]
[1747732248215,33.3207682,167.76,167.72,3.37575409]
[1747732248427,20.8631378,167.76,167.72,3.37575409]
[1747732249303,33.3207682,167.76,167.72,3.37575409]
[1747732249712,33.3207682,167.76,167.71,3.37575409]
[1747732255132,33.3207682,167.76,167.71,21.25575409]
[1747732256026,33.3207682,167.76,167.72,3.37575409]
[1747732261216,12.74195354,167.73,167.72,3.37575409]
[1747732262001,6.75852314,167.72,167.68,3.37575409]
[1747732262204,12.74195354,167.69,167.68,3.37575409]
[1747732262800,18.70533835,167.69,167.68,3.37575409]
[1747732263115,0.28432314,167.68,167.64,9.1228943]
[1747732263415,12.4576304,167.65,167.64,9.1228943]
[1747732263617,12.4576304,167.65,167.62,26.43472291]
[1747732264629,12.4576304,167.65,167.62,17.88]
[1747732264827,5.96516344,167.64,167.62,17.88]
[1747732266929,5.96445186,167.66,167.62,17.88]
[1747732267624,20.87558152,167.66,167.62,17.88]
[1747732267931,33.33321192,167.66,167.62,17.88]
[1747732269230,5.96445186,167.66,167.62,17.88]
[1747732270417,33.33019124,167.69,167.62,17.88]
[1747732270823,12.4576304,167.67,167.61,26.0]
[1747732271127,12.74195354,167.67,167.62,17.88]
[1747732271323,0.28432314,167.67,167.62,17.88]
[1747732271534,33.33019124,167.69,167.62,17.88]
[1747732274045,26.0,167.66,167.62,17.88]
[1747732274843,5.96409614,167.67,167.62,17.88]
[1747732275910,5.96374045,167.68,167.62,17.88]
[1747732276540,5.96374045,167.68,167.63,24.74104886]
[1747732276836,5.96267366,167.71,167.65,18.64964886]
[1747732277026,5.96267366,167.71,167.65,37.66964886]
[1747732277843,5.96267366,167.71,167.68,26.0]
[1747732278150,20.86502044,167.75,167.69,17.88]
[1747732278633,12.4576304,167.73,167.69,17.88]
[1747732279839,5.96231814,167.72,167.69,17.88]
[1747732280337,33.32574391,167.72,167.69,17.88]
[1747732281338,20.86811351,167.72,167.69,17.88]
[1747732284938,12.4576304,167.71,167.69,17.88]
[1747732285142,12.4576304,167.71,167.66,26.0]
[1747732285143,12.4576304,167.7,167.65,36.9]
[1747732285324,12.4576304,167.7,167.65,19.02]
[1747732285640,12.4576304,167.7,167.65,36.9]
[1747732285851,0.28432314,167.71,167.65,36.9]
[1747732286017,12.74195354,167.71,167.65,36.9]
[1747732286842,5.96302921,167.7,167.65,36.9]
[1747732287220,20.87060225,167.7,167.65,36.9]
[1747732288935,33.32823265,167.7,167.65,36.9]
[1747732295632,20.87060225,167.7,167.65,36.9]
[1747732296460,33.32823265,167.7,167.65,36.9]
[1747732297140,33.32823265,167.7,167.65,17.88]
[1747732299047,12.4576304,167.69,167.65,17.88]
[1747732299249,12.4576304,167.68,167.61,63.66964886]
[1747732299666,12.4576304,167.68,167.62,21.25428816]
[1747732300559,5.96409614,167.67,167.62,21.25428816]
[1747732301053,5.96409614,167.67,167.62,17.88]
[1747732302146,5.96409614,167.67,167.61,63.66964886]
[1747732302356,5.96409614,167.67,167.62,17.88]
[1747732302662,5.96409614,167.67,167.63,18.64964886]
[1747732302959,5.96302921,167.7,167.63,18.64964886]
[1747732303342,5.96302921,167.7,167.64,3.37601866]
[1747732303858,33.32823265,167.7,167.64,3.37601866]
[1747732304458,33.32823265,167.7,167.63,18.64964886]
[1747732306757,33.32823265,167.7,167.62,17.88]
[1747732307380,12.4576304,167.69,167.63,3.38155013]
[1747732307540,12.4576304,167.68,167.63,3.38155013]
[1747732308068,12.4576304,167.67,167.63,21.26155013]
[1747732308238,12.4576304,167.67,167.63,3.38155013]
[1747732308737,20.87558152,167.66,167.61,45.02]
[1747732308938,33.33321192,167.66,167.61,62.9]
[1747732309340,12.4576304,167.65,167.61,19.02]
[1747732309548,12.4576304,167.65,167.6,19.4761]
[1747732309751,12.4576304,167.65,167.61,3.38380819]
[1747732310140,33.33321192,167.66,167.61,3.38380819]
[1747732310768,33.33321192,167.66,167.6,19.4761]
[1747732312865,33.33321192,167.66,167.6,1.5961]
[1747732313050,33.33321192,167.66,167.61,17.88]
[1747732313259,33.33321192,167.66,167.61,21.2636941]
[1747732314269,33.33321192,167.66,167.62,3.3836941]
[1747732315662,33.33321192,167.66,167.61,17.88]
[1747732315974,20.87558152,167.66,167.61,17.88]
[1747732318469,20.87558152,167.66,167.62,3.38286976]
[1747732319572,20.87558152,167.66,167.61,17.88]
[1747732320276,5.96445186,167.66,167.61,17.88]
[1747732320573,5.96374045,167.68,167.62,44.64964886]
[1747732320876,5.96374045,167.68,167.62,63.64964886]
[1747732321274,5.96374045,167.68,167.63,3.3806216]
[1747732321683,0.28432314,167.71,167.63,3.3806216]
[1747732322379,0.28432314,167.71,167.64,3.3806216]
[1747732323572,5.96302921,167.7,167.63,3.3806216]
[1747732325966,5.96302921,167.7,167.63,9.34608843]
[1747732326172,5.96302921,167.7,167.64,18.64964886]
[1747732326480,5.96302921,167.7,167.65,3.3806216]
[1747732326852,5.96302921,167.7,167.65,29.3806216]
[1747732327057,5.96302921,167.7,167.65,30.9058216]
[1747732327266,14.90660259,167.72,167.65,30.9058216]
[1747732327461,5.96196267,167.73,167.66,18.64964886]
[1747732327682,5.96196267,167.73,167.67,17.88]
[1747732328180,5.96196267,167.73,167.68,3.3806216]
[1747732328779,14.90368307,167.75,167.68,3.3806216]
[1747732328780,20.86562536,167.74,167.68,3.3806216]
[1747732330465,12.4576304,167.72,167.68,3.3806216]
[1747732330664,12.4576304,167.72,167.67,17.88]
[1747732331067,20.86935781,167.71,167.67,17.88]
[1747732331874,5.96267366,167.71,167.67,17.88]
[1747732333289,20.86686936,167.73,167.68,3.3794449]
[1747732334986,14.90490669,167.73,167.69,3.3794449]
[1747732336090,14.90490669,167.73,167.67,17.88]
[1747732337786,5.96160724,167.74,167.68,44.64964886]
[1747732338091,5.96160724,167.74,167.68,48.0261007]
[1747732338462,5.96160724,167.74,167.69,3.37645184]
[1747732338663,20.86363865,167.76,167.69,3.37645184]
[1747732339176,33.32126905,167.76,167.69,3.37645184]
[1747732340067,33.32126905,167.76,167.68,37.64964886]
[1747732340785,12.4576304,167.74,167.68,19.0]
[1747732341189,12.74195354,167.75,167.68,19.0]
[1747732342487,20.86562536,167.74,167.68,19.0]
[1747732344794,20.86562536,167.74,167.69,3.37270388]
[1747732345798,20.86562536,167.74,167.68,19.0]
[1747732349298,5.96160724,167.74,167.69,18.64964886]
[1747732350379,18.41923764,167.74,167.68,19.0]
[1747732350585,33.32325576,167.74,167.68,19.0]
[1747732351181,12.4576304,167.75,167.68,19.0]
[1747732352303,38.4576304,167.75,167.68,19.0]
[1747732353299,20.86562536,167.74,167.69,17.88]
[1747732353701,12.4576304,167.73,167.69,17.88]
[1747732354508,33.32325576,167.74,167.69,17.88]
[1747732357718,12.4576304,167.72,167.65,20.5052]
[1747732357903,12.4576304,167.71,167.65,20.5052]
[1747732358207,12.4576304,167.7,167.66,21.25575067]
[1747732358600,0.28432314,167.71,167.66,3.37575067]
[1747732358797,12.4576304,167.7,167.66,3.37575067]
[1747732359613,20.87184685,167.69,167.65,36.86]
[1747732360594,20.87184685,167.69,167.65,17.88]
[1747732364022,33.32947725,167.69,167.65,17.88]
[1747732364415,33.32947725,167.69,167.62,26.0]
[1747732364615,12.74195354,167.68,167.63,17.88]
[1747732365121,12.74195354,167.68,167.64,3.38381113]
[1747732365305,0.28432314,167.68,167.64,3.38381113]
[1747732365921,5.96409614,167.67,167.64,3.38381113]
[1747732366633,20.86766663,167.73,167.65,18.64964886]
[1747732366809,5.96196267,167.73,167.65,44.64964886]
[1747732367008,5.96125186,167.75,167.67,18.64964886]
[1747732367323,5.96054121,167.77,167.71,18.64964886]
[1747732367499,5.96054121,167.77,167.72,17.88]
[1747732367701,5.96018595,167.78,167.73,3.37731437]
[1747732368904,5.96018595,167.78,167.72,19.4009]
[1747732369320,5.96018595,167.78,167.72,38.3809]
[1747732369940,20.85827578,167.8,167.72,38.3809]
[1747732371231,33.31590618,167.8,167.72,38.3809]
[1747732371440,20.86065084,167.78,167.72,38.3809]
[1747732371731,20.86065084,167.78,167.73,3.37401246]
[1747732372616,20.86065084,167.78,167.73,21.25401246]
[1747732372827,33.31828124,167.78,167.73,17.88]
[1747732373721,20.86065084,167.78,167.73,17.88]
[1747732376235,14.90046489,167.78,167.73,17.88]
[1747732376556,27.35809529,167.78,167.73,43.88]
[1747732376838,12.74195354,167.77,167.72,43.88]
[1747732377831,5.96089651,167.76,167.72,43.88]
[1747732380236,20.8631378,167.76,167.72,43.88]
[1747732389142,5.96089651,167.76,167.72,43.88]
[1747732391139,33.3207682,167.76,167.68,20.24604886]
[1747732391341,12.74195354,167.75,167.7,26.0]
[1747732392659,33.32325576,167.74,167.69,21.25164135]
[1747732392823,33.32325576,167.74,167.69,17.88]
[1747732393354,12.74195354,167.73,167.68,26.0]
[1747732393647,12.74195354,167.73,167.68,43.88]
[1747732394150,12.74195354,167.73,167.68,26.0]
[1747732394342,20.86811351,167.72,167.68,26.0]
[1747732394854,12.74195354,167.71,167.64,1.6543]
[1747732395152,12.4576304,167.68,167.62,17.88]
[1747732395323,12.4576304,167.67,167.62,17.88]
[1747732396457,20.87433649,167.67,167.62,17.88]
[1747732405872,20.87433649,167.67,167.61,18.64964886]
[1747732406069,20.87433649,167.67,167.63,17.88]
[1747732407973,14.91024035,167.67,167.63,17.88]
[1747732412581,27.36787075,167.67,167.63,17.88]
[1747732413451,33.33196689,167.67,167.62,17.88]
[1747732413852,20.87433649,167.67,167.62,17.88]
[1747732414463,33.33196689,167.67,167.62,17.88]
[1747732414961,33.33196689,167.67,167.6,20.6142]
[1747732415166,33.33196689,167.67,167.62,17.88]
[1747732415745,20.87433649,167.67,167.62,17.88]
[1747732423262,20.87433649,167.67,167.62,43.88]
[1747732423263,5.96409614,167.67,167.62,43.88]
[1747732423467,5.96409614,167.67,167.62,17.88]
[1747732423796,20.87433649,167.67,167.62,17.88]
[1747732426877,33.33196689,167.67,167.62,17.88]
[1747732427288,0.28432314,167.66,167.6,1.6542]
[1747732427487,0.28432314,167.66,167.61,17.88]
[1747732427488,12.74195354,167.66,167.61,17.88]
[1747732427785,12.4576304,167.65,167.59,17.88]
[1747732427982,12.74195354,167.66,167.59,17.88]
[1747732428283,20.87433649,167.67,167.6,18.64964886]
[1747732428785,33.33196689,167.67,167.6,18.64964886]
[1747732429169,20.87433649,167.67,167.6,18.64964886]
[1747732429874,5.96409614,167.67,167.62,18.64964886]
[1747732433487,20.87433649,167.67,167.61,1.5475]
[1747732433879,20.87433649,167.67,167.62,3.37871135]
[1747732434588,33.33196689,167.67,167.62,3.37871135]
[1747732434791,33.33196689,167.67,167.62,21.25871135]
[1747732435296,33.33196689,167.67,167.62,3.37871135]
[1747732435769,33.33196689,167.67,167.61,17.88]
[1747732436492,20.87433649,167.67,167.61,17.88]
[1747732437701,20.87433649,167.67,167.62,3.38741696]
[1747732439300,20.87433649,167.67,167.63,3.38741696]
[1747732440888,20.87433649,167.67,167.62,3.38741696]
[1747732441894,0.28432314,167.66,167.62,21.26741696]
[1747732442274,0.28432314,167.66,167.63,3.38741696]
[1747732443003,5.96480763,167.65,167.63,3.38741696]
[1747732444398,18.42243803,167.65,167.63,3.38741696]
[1747732445005,5.96480763,167.65,167.63,3.38741696]
[1747732445189,5.96480763,167.65,167.62,3.38741696]
[1747732446702,20.87433649,167.67,167.62,3.38741696]
[1747732449290,0.28432314,167.66,167.62,3.38741696]
[1747732449984,20.87682671,167.65,167.62,3.38741696]
[1747732454606,7.46687729,167.63,167.62,3.38741696]
[1747732459415,22.38067553,167.63,167.6,17.88]
[1747732460120,22.38067553,167.63,167.59,3.38741696]
[1747732460416,22.38067553,167.63,167.59,21.26741696]
[1747732460613,22.38067553,167.63,167.59,3.38741696]
[1747732460815,34.83830593,167.63,167.59,3.38741696]
[1747732461805,12.4576304,167.62,167.59,3.38741696]
[1747732462815,5.96623113,167.61,167.59,3.38741696]
[1747732463014,20.88180895,167.61,167.58,3.38741696]
[1747732471529,14.91557782,167.61,167.58,3.38741696]
[1747732473829,14.91557782,167.61,167.57,36.82]
[1747732475629,14.91557782,167.61,167.57,35.318642]
[1747732478135,14.91557782,167.61,167.58,3.40069287]
[1747732479216,20.88180895,167.61,167.58,3.40069287]
[1747732479441,20.88180895,167.61,167.57,35.318642]
[1747732479810,20.88180895,167.61,167.57,17.88]
[1747732481954,20.88180895,167.61,167.52,1.6195]
[1747732481955,0.28432314,167.6,167.52,1.6195]
[1747732482116,8.01366205,167.58,167.52,1.6195]
[1747732482438,8.01366205,167.59,167.54,26.0]
[1747732483733,8.29798519,167.6,167.54,26.0]
[1747732484240,20.88430096,167.59,167.54,26.0]
[1747732487520,20.88430096,167.59,167.53,17.88]
[1747732487826,20.88430096,167.59,167.54,3.39970562]
[1747732489147,20.88430096,167.59,167.55,3.39970562]
[1747732490435,20.88430096,167.59,167.54,3.39970562]
[1747732492356,0.28432314,167.58,167.54,3.39970562]
[1747732492534,0.28432314,167.58,167.55,17.88]
[1747732494444,5.9676553,167.57,167.55,17.88]
[1747732498523,8.01366205,167.59,167.55,17.88]
[1747732498838,20.8855472,167.58,167.55,17.88]
[1747732499953,5.9672992,167.58,167.55,17.88]
[1747732500248,14.91637158,167.61,167.56,18.64964886]
[1747732500463,5.96658711,167.6,167.56,18.64964886]
[1747732500831,14.91637158,167.61,167.56,18.64964886]
[1747732501029,14.91637158,167.61,167.55,17.88]
[1747732501030,22.93003363,167.61,167.55,17.88]
[1747732501327,8.01366205,167.6,167.57,3.40167482]
[1747732502228,22.93003363,167.61,167.55,17.9]
[1747732502431,14.91637158,167.61,167.55,17.9]
[1747732502855,20.88260271,167.61,167.55,17.9]
[1747732503356,20.88260271,167.61,167.56,3.40301972]
[1747732504641,20.88260271,167.61,167.57,3.40301972]
[1747732506155,28.89626476,167.61,167.56,3.40301972]
[1747732506963,8.01366205,167.6,167.56,3.40301972]
[1747732507943,28.89626476,167.61,167.56,3.40301972]
[1747732511851,8.01366205,167.6,167.56,3.40301972]
[1747732512057,8.29798519,167.57,167.56,3.40301972]
[1747732512255,0.28432314,167.56,167.51,21.28301972]
[1747732512459,58.0546482,167.6,167.51,21.28301972]
[1747732512460,8.01366205,167.55,167.51,21.28301972]
[1747732513261,20.89053359,167.54,167.51,21.28301972]
[1747732514167,20.89053359,167.54,167.51,3.40301972]
[1747732514351,20.89053359,167.54,167.52,3.40301972]
[1747732515671,14.92180971,167.54,167.52,3.40301972]
[1747732516373,5.96836765,167.55,167.52,3.40301972]
[1747732516671,5.96694313,167.59,167.53,18.64964886]
[1747732516854,5.96694313,167.59,167.54,1.5286]
[1747732517772,14.91717039,167.6,167.55,44.64964886]
[1747732518258,14.91717039,167.6,167.56,3.40301972]
[1747732518460,14.91717039,167.6,167.57,17.9]
[1747732522157,5.96587519,167.62,167.57,17.9]
[1747732522465,5.96587519,167.62,167.58,18.64964886]
[1747732523174,5.96587519,167.62,167.58,22.05251988]
[1747732524378,14.91434381,167.63,167.58,22.05251988]
[1747732524560,14.91434381,167.63,167.59,3.40287102]
[1747732526051,14.91434381,167.63,167.6,3.40287102]
[1747732526875,14.91434381,167.63,167.61,3.40287102]
[1747732528155,14.91434381,167.63,167.58,18.64964886]
[1747732528886,20.87682671,167.65,167.58,44.64964886]
[1747732529478,20.87682671,167.65,167.6,18.64964886]
[1747732529856,14.91201908,167.65,167.6,18.64964886]
[1747732531008,14.91201908,167.65,167.59,18.64964886]
[1747732531780,20.87682671,167.65,167.6,3.3966908]
[1747732532367,33.41007977,167.65,167.6,3.3966908]
[1747732533250,33.41007977,167.65,167.58,26.0]
[1747732533878,20.87682671,167.65,167.58,26.0]
[1747732534882,20.87682671,167.65,167.59,3.39569483]
[1747732535991,27.44527214,167.65,167.59,3.39569483]
[1747732536671,27.44527214,167.65,167.58,26.0]
[1747732537087,20.87682671,167.65,167.58,26.0]
[1747732539060,14.91201908,167.65,167.62,26.0]
[1747732539273,14.91201908,167.65,167.62,43.88]
[1747732543191,5.96409614,167.67,167.63,18.64964886]
[1747732543582,14.90966128,167.68,167.63,18.64964886]
[1747732544602,14.90966128,167.68,167.66,26.0]
[1747732544809,20.86935781,167.71,167.67,17.88]
[1747732544971,33.40261087,167.71,167.67,17.88]
[1747732547389,12.53325306,167.7,167.67,17.88]
[1747732548190,5.96338481,167.69,167.67,17.88]
[1747732549394,20.87060225,167.7,167.67,17.88]
[1747732551802,14.90757304,167.7,167.67,17.88]
[1747732551993,12.53325306,167.69,167.67,17.88]
[1747732553600,14.90757304,167.7,167.67,17.88]
[1747732553990,20.87060225,167.7,167.67,17.88]
[1747732554493,5.96302921,167.7,167.69,26.0]
[1747732554698,5.96054121,167.77,167.7,18.64964886]
[1747732554886,14.90299093,167.76,167.7,18.64964886]
[1747732556275,14.90299093,167.76,167.7,26.0]
[1747732556478,27.43624399,167.76,167.7,26.0]
[1747732557426,14.90299093,167.76,167.7,26.0]
[1747732558390,5.96018595,167.78,167.71,18.64964886]
[1747732558591,5.96018595,167.78,167.72,17.88]
[1747732558920,20.86065084,167.78,167.72,17.88]
[1747732559420,33.3939039,167.78,167.72,17.88]
[1747732559922,20.86065084,167.78,167.72,17.88]
[1747732560225,33.3939039,167.78,167.72,17.88]
[1747732561114,20.86065084,167.78,167.72,17.88]
[1747732561408,5.96018595,167.78,167.73,44.64964886]
[1747732562196,5.95912043,167.81,167.78,18.64964886]
[1747732562415,5.95841029,167.83,167.79,17.88]
[1747732563429,0.28432314,167.79,167.73,17.88]
[1747732563715,12.53325306,167.77,167.73,17.88]
[1747732564097,5.96089651,167.76,167.73,17.88]
[1747732566227,14.90200128,167.77,167.73,17.88]
[1747732566731,5.96018595,167.78,167.73,17.88]
[1747732567023,20.86065084,167.78,167.73,17.88]
[1747732567422,20.86065084,167.78,167.68,1.6494]
[1747732567423,12.8175762,167.77,167.68,1.6494]
[1747732567609,12.8175762,167.77,167.72,26.0]
[1747732568119,0.28432314,167.77,167.72,26.0]
[1747732568623,5.96089651,167.76,167.72,26.0]
[1747732569421,20.8631378,167.76,167.72,26.0]
[1747732573207,33.39639086,167.76,167.72,26.0]
[1747732573401,33.39639086,167.76,167.68,20.5294]
[1747732573402,12.53325306,167.74,167.68,18.88]
[1747732573608,12.53325306,167.73,167.69,17.88]
[1747732574616,33.40136657,167.72,167.67,43.88]
[1747732574802,20.86811351,167.72,167.67,43.88]
[1747732576047,5.96231814,167.72,167.67,43.88]
[1747732576528,29.35874381,167.75,167.67,43.88]
[1747732576529,20.86562536,167.74,167.67,43.88]
[1747732577335,12.53325306,167.72,167.67,43.88]
[1747732577831,0.28432314,167.73,167.67,43.88]
[1747732578237,12.53325306,167.72,167.67,43.88]
[1747732578811,20.86935781,167.71,167.67,43.88]
[1747732579334,20.86935781,167.71,167.67,26.0]